[Event "Torneo Nuevo Centro. Jornada 11"]
[Site "Chess.com"]
[Date "2020.08.28"]
[Round "5"]
[White "Miranda Calvo, Max Rodrigo"]
[Black "Alvarez Usina, Joan"]
[Result "1-0"]
[WhiteElo "1303"]
[BlackElo "388"]
[TimeControl "180+2"]
[EndTime "11:19:59 PDT"]
[Termination "Victoria de bas-max-miranda por abandono"]

1. e4 {[%clk 0:03:01.9]} 1... e5 {[%clk 0:02:59.7]} 2. Nf3 {[%clk 0:03:02.5]}
2... Nc6 {[%clk 0:02:45.3]} 3. Bc4 {[%clk 0:03:01.3]} 3... Bc5 {[%clk
0:02:42.3]} 4. c3 {[%clk 0:02:55.7]} 4... d6 {[%clk 0:02:38.8]} 5. h3 {[%clk
0:02:53.9]} 5... Nf6 {[%clk 0:01:55.5]} 6. d3 {[%clk 0:02:52.5]} 6... O-O {[%clk
0:01:45.2]} 7. Bg5 {[%clk 0:02:50.5]} 7... h6 {[%clk 0:01:39.3]} 8. Bh4 {[%clk
0:02:48.5]} 8... g5 {[%clk 0:01:37.6]} 9. Bg3 {[%clk 0:02:49]} 9... Nh5 {[%clk
0:01:35.8]} 10. Bh2 {[%clk 0:02:48.9]} 10... Qf6 {[%clk 0:01:28.6]} 11. O-O
{[%clk 0:02:44.6]} 11... Nf4 {[%clk 0:01:08]} 12. Bxf4 {[%clk 0:02:41.6]} 12...
exf4 {[%clk 0:01:04.2]} 13. Nbd2 {[%clk 0:02:40.5]} 13... h5 {[%clk 0:00:56.4]}
14. Nh2 {[%clk 0:02:37.7]} 14... g4 {[%clk 0:00:54.5]} 15. hxg4 {[%clk
0:02:38.4]} 15... hxg4 {[%clk 0:00:53.1]} 16. Nxg4 {[%clk 0:02:34.9]} 16... Qh4
{[%clk 0:00:52.7]} 17. Nh2 {[%clk 0:02:20.4]} 17... Ne5 {[%clk 0:00:48]} 18.
Ndf3 {[%clk 0:02:13]} 18... Nxf3+ {[%clk 0:00:47.3]} 19. Nxf3 {[%clk 0:02:09.8]}
19... Qh5 {[%clk 0:00:42.5]} 20. d4 {[%clk 0:02:00.6]} 20... Kg7 {[%clk
0:00:38.4]} 21. dxc5 {[%clk 0:02:00]} 21... Rh8 {[%clk 0:00:40.3]} 22. Qd4+
{[%clk 0:01:52.8]} 22... f6 {[%clk 0:00:38.2]} 23. Nh4 {[%clk 0:01:39.7]} 23...
Qxh4 {[%clk 0:00:36.3]} 24. f3 {[%clk 0:01:40.5]} 24... Qh2+ {[%clk 0:00:28.9]}
25. Kf2 {[%clk 0:01:40.4]} 25... Qg3+ {[%clk 0:00:29.2]} 26. Ke2 {[%clk
0:01:40.8]} 26... Qxg2+ {[%clk 0:00:28]} 27. Qf2 {[%clk 0:01:42.2]} 27... Rh2
{[%clk 0:00:22.3]} 28. Rg1 {[%clk 0:01:40.2]} 28... Qxg1 {[%clk 0:00:15.2]} 29.
Rxg1+ {[%clk 0:01:39.9]} 29... Kf8 {[%clk 0:00:12.9]} 30. Qxh2 {[%clk
0:01:40.6]} 1

[Event "Torneo Nuevo Centro. Jornada 11"]
[Site "Chess.com"]
[Date "2020.08.28"]
[Round "5"]
[White "Blanco Solaz, Ramón"]
[Black "Marques Montolio, Luis"]
[Result "1-0"]
[WhiteElo "1959"]
[BlackElo "1471"]
[TimeControl "180+2"]
[EndTime "11:20:15 PDT"]
[Termination "Victoria de Rbs77 por jaque mate"]

1. e4 {[%clk 0:03:01.9]} 1... d5 {[%clk 0:02:59.8]} 2. exd5 {[%clk 0:03:02.4]}
2... Qxd5 {[%clk 0:03:01.7]} 3. Nc3 {[%clk 0:03:03.4]} 3... Qa5 {[%clk 0:03:00]}
4. Bc4 {[%clk 0:03:03.7]} 4... c6 {[%clk 0:03:00.4]} 5. d4 {[%clk 0:03:03]} 5...
Bf5 {[%clk 0:02:59.9]} 6. Nf3 {[%clk 0:03:02.1]} 6... e6 {[%clk 0:03:00.7]} 7.
O-O {[%clk 0:03:01.8]} 7... Nf6 {[%clk 0:02:59.8]} 8. Bd2 {[%clk 0:02:57.3]}
8... Qc7 {[%clk 0:02:58.3]} 9. Bb3 {[%clk 0:02:54.7]} 9... Bd6 {[%clk
0:02:57.1]} 10. Qe2 {[%clk 0:02:42.2]} 10... O-O {[%clk 0:02:56.9]} 11. Ne5
{[%clk 0:02:33.1]} 11... Nbd7 {[%clk 0:02:54]} 12. f4 {[%clk 0:02:33.7]} 12...
Nd5 {[%clk 0:02:48.1]} 13. Ne4 {[%clk 0:02:25.1]} 13... a5 {[%clk 0:02:35.6]}
14. c4 {[%clk 0:02:21.3]} 14... Bxe5 {[%clk 0:02:25.5]} 15. fxe5 {[%clk
0:02:22]} 15... Ne7 {[%clk 0:02:08.8]} 16. Nd6 {[%clk 0:02:18]} 16... c5 {[%clk
0:02:02.3]} 17. d5 {[%clk 0:02:15.3]} 17... a4 {[%clk 0:01:58.2]} 18. Bd1 {[%clk
0:02:11.1]} 18... Bg6 {[%clk 0:01:53.9]} 19. Bg5 {[%clk 0:02:05.6]} 19... Nf5
{[%clk 0:01:49.4]} 20. Nxf5 {[%clk 0:01:52.8]} 20... exf5 {[%clk 0:01:51.3]} 21.
Be7 {[%clk 0:01:53.3]} 21... Rfe8 {[%clk 0:01:47]} 22. d6 {[%clk 0:01:54.2]}
22... Qc6 {[%clk 0:01:38.4]} 23. Bc2 {[%clk 0:01:55.6]} 23... b6 {[%clk
0:01:27.5]} 24. Bxf5 {[%clk 0:01:54.8]} 24... Bxf5 {[%clk 0:01:27.7]} 25. Rxf5
{[%clk 0:01:55.9]} 25... Nf8 {[%clk 0:01:22]} 26. Raf1 {[%clk 0:01:54.9]} 26...
Ng6 {[%clk 0:01:21]} 27. Rxf7 {[%clk 0:01:55.3]} 27... Ra7 {[%clk 0:01:12.1]}
28. h4 {[%clk 0:01:26.2]} 28... Nxh4 {[%clk 0:01:02.4]} 29. e6 {[%clk
0:01:22.7]} 29... Raxe7 {[%clk 0:00:27.7]} 30. dxe7 {[%clk 0:01:19.7]} 30... Qc7
{[%clk 0:00:18.9]} 31. Rf8+ {[%clk 0:01:19.7]} 31... Rxf8 {[%clk 0:00:18.4]} 32.
Rxf8# {[%clk 0:01:21.6]} 1

[Event "Torneo Nuevo Centro. Jornada 11"]
[Site "Chess.com"]
[Date "2020.08.28"]
[Round "5"]
[White "Ursariu, Nikolas Victor"]
[Black "Hernández Tomás, Efrén"]
[Result "0-1"]
[WhiteElo "1162"]
[BlackElo "1128"]
[TimeControl "180+2"]
[EndTime "11:20:17 PDT"]
[Termination "Victoria de EfrenHT10 por jaque mate"]

1. e4 {[%clk 0:03:01.9]} 1... e5 {[%clk 0:03:01.9]} 2. Nf3 {[%clk 0:03:01.2]}
2... Nf6 {[%clk 0:03:02.5]} 3. Nxe5 {[%clk 0:03:00.7]} 3... Qe7 {[%clk
0:03:03.6]} 4. Nf3 {[%clk 0:02:57.1]} 4... Nxe4 {[%clk 0:03:03.2]} 5. Qe2 {[%clk
0:02:56.9]} 5... Nf6 {[%clk 0:03:03.7]} 6. Qxe7+ {[%clk 0:02:55.8]} 6... Bxe7
{[%clk 0:03:04.9]} 7. Bc4 {[%clk 0:02:53.8]} 7... Nc6 {[%clk 0:03:05.5]} 8. Nc3
{[%clk 0:02:52.2]} 8... Nb4 {[%clk 0:03:04.5]} 9. Kd1 {[%clk 0:02:47.8]} 9... d5
{[%clk 0:03:00.8]} 10. Bb3 {[%clk 0:02:44.3]} 10... Be6 {[%clk 0:02:59]} 11. a3
{[%clk 0:02:42.4]} 11... Ng4 {[%clk 0:02:58.2]} 12. Rf1 {[%clk 0:02:37.6]} 12...
d4 {[%clk 0:02:50.4]} 13. Bxe6 {[%clk 0:02:33.4]} 13... fxe6 {[%clk 0:02:46.5]}
14. axb4 {[%clk 0:02:31.7]} 14... dxc3 {[%clk 0:02:47.3]} 15. dxc3 {[%clk
0:02:31.4]} 15... O-O-O+ {[%clk 0:02:46.8]} 16. Ke2 {[%clk 0:02:22.8]} 16... a6
{[%clk 0:02:40.3]} 17. h3 {[%clk 0:02:21.6]} 17... Nf6 {[%clk 0:02:40.5]} 18.
Re1 {[%clk 0:02:18.8]} 18... Rd6 {[%clk 0:02:36.2]} 19. Kf1 {[%clk 0:02:16.1]}
19... Nd5 {[%clk 0:02:32]} 20. Be3 {[%clk 0:02:10.9]} 20... Nxe3+ {[%clk
0:02:29]} 21. fxe3 {[%clk 0:02:07.2]} 21... Bf6 {[%clk 0:02:27.9]} 22. Red1
{[%clk 0:01:58.5]} 22... Rxd1+ {[%clk 0:02:26.6]} 23. Rxd1 {[%clk 0:01:57.3]}
23... Rd8 {[%clk 0:02:26.3]} 24. Ke2 {[%clk 0:01:54]} 24... Rxd1 {[%clk
0:02:24.1]} 25. Kxd1 {[%clk 0:01:54.3]} 25... e5 {[%clk 0:02:24.7]} 26. Kd2
{[%clk 0:01:54.9]} 26... e4 {[%clk 0:02:25.2]} 27. Nd4 {[%clk 0:01:50.3]} 27...
Bxd4 {[%clk 0:02:25.5]} 28. cxd4 {[%clk 0:01:47.2]} 28... Kd7 {[%clk 0:02:25.7]}
29. Ke2 {[%clk 0:01:43]} 29... Kd6 {[%clk 0:02:26.4]} 30. Kf2 {[%clk 0:01:44.9]}
30... Kd5 {[%clk 0:02:26.6]} 31. b3 {[%clk 0:01:43.9]} 31... c6 {[%clk
0:02:24.7]} 32. c4+ {[%clk 0:01:44]} 32... Ke6 {[%clk 0:02:23.3]} 33. Kg3 {[%clk
0:01:43.7]} 33... Kf5 {[%clk 0:02:24.1]} 34. Kf2 {[%clk 0:01:43.2]} 34... b6
{[%clk 0:02:23.3]} 35. g4+ {[%clk 0:01:43.7]} 35... Kg5 {[%clk 0:02:22.9]} 36.
Kg3 {[%clk 0:01:44.4]} 36... h5 {[%clk 0:02:22.2]} 37. h4+ {[%clk 0:01:44.6]}
37... Kg6 {[%clk 0:02:20.6]} 38. Kf4 {[%clk 0:01:43.3]} 38... hxg4 {[%clk
0:02:21]} 39. Kxg4 {[%clk 0:01:43.8]} 39... Kh6 {[%clk 0:02:20]} 40. Kg3 {[%clk
0:01:35.6]} 40... Kh5 {[%clk 0:02:20.2]} 41. Kh3 {[%clk 0:01:35.6]} 41... g5
{[%clk 0:02:20.2]} 42. hxg5 {[%clk 0:01:35.9]} 42... Kxg5 {[%clk 0:02:21]} 43.
Kg3 {[%clk 0:01:37.1]} 43... Kf5 {[%clk 0:02:21.6]} 44. b5 {[%clk 0:01:32.7]}
44... axb5 {[%clk 0:02:19.7]} 45. cxb5 {[%clk 0:01:34.6]} 45... cxb5 {[%clk
0:02:20.1]} 46. d5 {[%clk 0:01:33.1]} 46... Ke5 {[%clk 0:02:21]} 47. d6 {[%clk
0:01:33.1]} 47... Kxd6 {[%clk 0:02:22]} 48. Kf4 {[%clk 0:01:35]} 48... Kd5
{[%clk 0:02:23.1]} 49. b4 {[%clk 0:01:32.2]} 49... Kc4 {[%clk 0:02:23.2]} 50.
Kxe4 {[%clk 0:01:32.2]} 50... Kxb4 {[%clk 0:02:24.3]} 51. Kf5 {[%clk 0:01:34.1]}
51... Ka4 {[%clk 0:02:25.5]} 52. e4 {[%clk 0:01:36]} 52... b4 {[%clk 0:02:26.8]}
53. e5 {[%clk 0:01:37.9]} 53... b3 {[%clk 0:02:28.1]} 54. e6 {[%clk 0:01:39.8]}
54... b2 {[%clk 0:02:29]} 55. e7 {[%clk 0:01:41.7]} 55... b1=Q+ {[%clk
0:02:29.2]} 56. Kf6 {[%clk 0:01:41.2]} 56... Qe1 {[%clk 0:02:27.2]} 57. Kf7
{[%clk 0:01:40.5]} 57... Qxe7+ {[%clk 0:02:26.1]} 58. Kxe7 {[%clk 0:01:39.7]}
58... b5 {[%clk 0:02:27.1]} 59. Kd6 {[%clk 0:01:41.6]} 59... b4 {[%clk
0:02:28.1]} 60. Kd5 {[%clk 0:01:43.5]} 60... b3 {[%clk 0:02:29.1]} 61. Kc4
{[%clk 0:01:45.4]} 61... b2 {[%clk 0:02:29.9]} 62. Kc3 {[%clk 0:01:47.3]} 62...
b1=Q {[%clk 0:02:30.6]} 63. Kc4 {[%clk 0:01:46.4]} 63... Qb4+ {[%clk 0:02:28]}
64. Kd5 {[%clk 0:01:46]} 64... Kb5 {[%clk 0:02:27.7]} 65. Ke6 {[%clk 0:01:45.9]}
65... Qe4+ {[%clk 0:02:26.4]} 66. Kd7 {[%clk 0:01:46.5]} 66... Qg6 {[%clk
0:02:25.9]} 67. Kd8 {[%clk 0:01:48.4]} 67... Qf7 {[%clk 0:02:26.1]} 68. Kc8
{[%clk 0:01:48.7]} 68... Kc6 {[%clk 0:02:26.8]} 69. Kb8 {[%clk 0:01:50.6]} 69...
Qb7# {[%clk 0:02:27.2]} 0

[Event "Torneo Nuevo Centro. Jornada 11"]
[Site "Chess.com"]
[Date "2020.08.28"]
[Round "5"]
[White "Pardo Ruiz, Carlos"]
[Black "Aguado, Pablo Luis"]
[Result "0-1"]
[WhiteElo "1700"]
[BlackElo "1923"]
[TimeControl "180+2"]
[EndTime "11:20:21 PDT"]
[Termination "Victoria de PLAD_2006 por jaque mate"]

1. e4 {[%clk 0:03:00.1]} 1... e5 {[%clk 0:03:00.3]} 2. Nf3 {[%clk 0:03:00.1]}
2... Nf6 {[%clk 0:03:00.7]} 3. Nxe5 {[%clk 0:02:59.7]} 3... d6 {[%clk
0:03:01.2]} 4. Nf3 {[%clk 0:02:59.7]} 4... Nxe4 {[%clk 0:03:02.3]} 5. Nc3 {[%clk
0:03:01.2]} 5... Nxc3 {[%clk 0:03:03]} 6. bxc3 {[%clk 0:03:03.1]} 6... Be7
{[%clk 0:03:04.3]} 7. Bc4 {[%clk 0:03:01.6]} 7... O-O {[%clk 0:03:03.9]} 8. h3
{[%clk 0:02:58]} 8... Nd7 {[%clk 0:03:02]} 9. O-O {[%clk 0:02:57.6]} 9... Nf6
{[%clk 0:03:02.8]} 10. d4 {[%clk 0:02:57.4]} 10... d5 {[%clk 0:03:03.9]} 11. Bd3
{[%clk 0:02:57.3]} 11... c6 {[%clk 0:03:04.3]} 12. Ne5 {[%clk 0:02:56.9]} 12...
h6 {[%clk 0:03:00.8]} 13. Bf4 {[%clk 0:02:55.9]} 13... Bd6 {[%clk 0:03:01.6]}
14. Qd2 {[%clk 0:02:52.9]} 14... Nd7 {[%clk 0:02:55.2]} 15. Nxd7 {[%clk
0:02:28.5]} 15... Qxd7 {[%clk 0:02:52.1]} 16. Bxd6 {[%clk 0:02:29.6]} 16... Qxd6
{[%clk 0:02:54]} 17. Rfe1 {[%clk 0:02:28.7]} 17... Bd7 {[%clk 0:02:50.6]} 18.
Rab1 {[%clk 0:02:28.4]} 18... b6 {[%clk 0:02:50]} 19. c4 {[%clk 0:02:26.6]}
19... Rfe8 {[%clk 0:02:46.5]} 20. cxd5 {[%clk 0:02:25.3]} 20... Qxd5 {[%clk
0:02:47]} 21. a3 {[%clk 0:02:18.6]} 21... Kh8 {[%clk 0:02:22.3]} 22. c3 {[%clk
0:02:16.1]} 22... Rad8 {[%clk 0:02:14.8]} 23. Rxe8+ {[%clk 0:02:10.5]} 23...
Rxe8 {[%clk 0:02:15.4]} 24. Re1 {[%clk 0:02:11]} 24... Rxe1+ {[%clk 0:02:15.7]}
25. Qxe1 {[%clk 0:02:12.9]} 25... Be6 {[%clk 0:02:13.7]} 26. Qe4 {[%clk
0:01:49.1]} 26... Qxe4 {[%clk 0:02:00.3]} 27. Bxe4 {[%clk 0:01:51]} 27... Bd5
{[%clk 0:01:57.3]} 28. Bxd5 {[%clk 0:01:50.3]} 28... cxd5 {[%clk 0:01:59.2]} 29.
f4 {[%clk 0:01:50.6]} 29... Kh7 {[%clk 0:02:00.1]} 30. g4 {[%clk 0:01:50.5]}
30... Kg6 {[%clk 0:02:01.3]} 31. Kf2 {[%clk 0:01:51.3]} 31... Kf6 {[%clk
0:02:02.5]} 32. Ke2 {[%clk 0:01:51.9]} 32... Ke6 {[%clk 0:02:03.6]} 33. Kd2
{[%clk 0:01:52.6]} 33... g6 {[%clk 0:01:58.9]} 34. h4 {[%clk 0:01:33.9]} 34...
h5 {[%clk 0:01:54.6]} 35. gxh5 {[%clk 0:01:34]} 35... gxh5 {[%clk 0:01:56.5]}
36. Ke3 {[%clk 0:01:34.7]} 36... Kf5 {[%clk 0:01:53.1]} 37. Kf3 {[%clk
0:01:35.5]} 37... b5 {[%clk 0:01:54.1]} 38. Ke3 {[%clk 0:01:26.5]} 38... Kg4
{[%clk 0:01:54.4]} 39. Kd3 {[%clk 0:01:26.4]} 39... Kxf4 {[%clk 0:01:54.8]} 40.
Kc2 {[%clk 0:01:25.5]} 40... Ke3 {[%clk 0:01:53.7]} 41. Kb3 {[%clk 0:01:26.6]}
41... f5 {[%clk 0:01:54.1]} 42. Kb4 {[%clk 0:01:28]} 42... f4 {[%clk 0:01:49.2]}
43. Kxb5 {[%clk 0:01:28.7]} 43... f3 {[%clk 0:01:50.8]} 44. Ka6 {[%clk
0:01:29.9]} 44... f2 {[%clk 0:01:52.1]} 45. a4 {[%clk 0:01:31]} 45... f1=Q+
{[%clk 0:01:52.9]} 46. Kxa7 {[%clk 0:01:32.9]} 46... Qc4 {[%clk 0:01:53.9]} 47.
a5 {[%clk 0:01:33.4]} 47... Qxc3 {[%clk 0:01:55.3]} 48. a6 {[%clk 0:01:34.6]}
48... Qxd4+ {[%clk 0:01:56.7]} 49. Ka8 {[%clk 0:01:35.4]} 49... Qxh4 {[%clk
0:01:57.3]} 50. a7 {[%clk 0:01:36.2]} 50... Qd8+ {[%clk 0:01:58.6]} 51. Kb7
{[%clk 0:01:37]} 51... Qd7+ {[%clk 0:01:59.9]} 52. Kb8 {[%clk 0:01:37.7]} 52...
Qxa7+ {[%clk 0:02:01.2]} 53. Kxa7 {[%clk 0:01:38.6]} 53... d4 {[%clk 0:02:02.6]}
54. Kb6 {[%clk 0:01:40.4]} 54... d3 {[%clk 0:02:04.1]} 55. Kc5 {[%clk
0:01:42.3]} 55... d2 {[%clk 0:02:05.6]} 56. Kb4 {[%clk 0:01:44.2]} 56... d1=Q
{[%clk 0:02:06.6]} 57. Kb5 {[%clk 0:01:43.8]} 57... Qc2 {[%clk 0:02:07]} 58. Kb4
{[%clk 0:01:43.7]} 58... Kd4 {[%clk 0:02:05.9]} 59. Kb5 {[%clk 0:01:45.6]} 59...
Qc4+ {[%clk 0:02:06.2]} 60. Kb6 {[%clk 0:01:45.2]} 60... Kd5 {[%clk 0:02:06.7]}
61. Kb7 {[%clk 0:01:46]} 61... Qc5 {[%clk 0:02:07.1]} 62. Ka8 {[%clk 0:01:44.6]}
62... Qb5 {[%clk 0:02:06.8]} 63. Ka7 {[%clk 0:01:44]} 63... Kc6 {[%clk
0:02:07.4]} 64. Ka8 {[%clk 0:01:45.9]} 64... Qb7# {[%clk 0:02:08.7]} 0

[Event "Torneo Nuevo Centro. Jornada 11"]
[Site "Chess.com"]
[Date "2020.08.28"]
[Round "5"]
[White "Bosch Jordà, Ricard"]
[Black "Chofre Murcia, Adrián"]
[Result "1-0"]
[WhiteElo "1918"]
[BlackElo "1630"]
[TimeControl "180+2"]
[EndTime "11:20:21 PDT"]
[Termination "Victoria de UltimateLimo por jaque mate"]

1. e4 {[%clk 0:03:01.9]} 1... e5 {[%clk 0:03:00.3]} 2. Nf3 {[%clk 0:03:02.7]}
2... Nc6 {[%clk 0:03:01.3]} 3. Bb5 {[%clk 0:03:03]} 3... Nf6 {[%clk 0:02:58]} 4.
O-O {[%clk 0:03:00.4]} 4... Bc5 {[%clk 0:02:57.9]} 5. c3 {[%clk 0:02:57.9]} 5...
d6 {[%clk 0:02:58.3]} 6. h3 {[%clk 0:02:57.5]} 6... Bd7 {[%clk 0:02:58.3]} 7. d4
{[%clk 0:02:57.9]} 7... exd4 {[%clk 0:02:53.3]} 8. cxd4 {[%clk 0:02:59.6]} 8...
Bb4 {[%clk 0:02:49]} 9. Bg5 {[%clk 0:02:54.7]} 9... O-O {[%clk 0:02:38.4]} 10.
Nc3 {[%clk 0:01:46.9]} 10... Bxc3 {[%clk 0:02:37.3]} 11. bxc3 {[%clk 0:01:45.9]}
11... h6 {[%clk 0:02:38.1]} 12. Bh4 {[%clk 0:01:46.1]} 12... a6 {[%clk
0:02:35.4]} 13. Ba4 {[%clk 0:01:45.4]} 13... b5 {[%clk 0:02:34.4]} 14. Bc2
{[%clk 0:01:45.8]} 14... Re8 {[%clk 0:02:25.5]} 15. Re1 {[%clk 0:01:33.5]} 15...
g5 {[%clk 0:02:22.6]} 16. Nxg5 {[%clk 0:01:32.8]} 16... hxg5 {[%clk 0:02:20]}
17. Bxg5 {[%clk 0:01:34.7]} 17... Kg7 {[%clk 0:02:03.2]} 18. Qd3 {[%clk
0:01:24.1]} 18... Rh8 {[%clk 0:02:00.7]} 19. e5 {[%clk 0:01:16.3]} 19... dxe5
{[%clk 0:01:52.5]} 20. dxe5 {[%clk 0:01:11.8]} 20... Nxe5 {[%clk 0:01:48.2]} 21.
Rxe5 {[%clk 0:01:08.3]} 21... Bc6 {[%clk 0:01:47.3]} 22. Qg3 {[%clk 0:00:56.7]}
22... Nh5 {[%clk 0:01:22.5]} 23. Qg4 {[%clk 0:00:32.5]} 23... Qd7 {[%clk
0:01:01.7]} 24. Bh6+ {[%clk 0:00:19.3]} 24... Kf6 {[%clk 0:00:49.4]} 25. Qg5#
{[%clk 0:00:17.8]} 1

[Event "Torneo Nuevo Centro. Jornada 11"]
[Site "Chess.com"]
[Date "2020.08.28"]
[Round "5"]
[White "Fente Fernandez, Jose Ignacio"]
[Black "Bascuñana Sánchez, Pablo"]
[Result "1/2-1/2"]
[WhiteElo "1560"]
[BlackElo "1672"]
[TimeControl "180+2"]
[EndTime "11:20:50 PDT"]
[Termination "Tablas por rey ahogado"]

1. d4 {[%clk 0:03:01.9]} 1... g6 {[%clk 0:02:59.7]} 2. c4 {[%clk 0:02:44.5]}
2... Nf6 {[%clk 0:02:58.9]} 3. Nf3 {[%clk 0:02:45.4]} 3... Bg7 {[%clk
0:02:57.8]} 4. g3 {[%clk 0:02:37.8]} 4... O-O {[%clk 0:02:52.9]} 5. Bg2 {[%clk
0:02:37]} 5... d6 {[%clk 0:02:50.4]} 6. O-O {[%clk 0:02:37.8]} 6... Be6 {[%clk
0:02:49]} 7. d5 {[%clk 0:02:36]} 7... Bc8 {[%clk 0:02:48.3]} 8. Nc3 {[%clk
0:02:31.9]} 8... c6 {[%clk 0:02:45.9]} 9. e4 {[%clk 0:02:22.1]} 9... cxd5 {[%clk
0:02:39.1]} 10. cxd5 {[%clk 0:02:20.6]} 10... e6 {[%clk 0:02:36]} 11. dxe6
{[%clk 0:02:17.7]} 11... fxe6 {[%clk 0:02:33.2]} 12. Bg5 {[%clk 0:02:15.2]}
12... b6 {[%clk 0:02:32.1]} 13. e5 {[%clk 0:02:13.6]} 13... dxe5 {[%clk
0:02:26.6]} 14. Nxe5 {[%clk 0:02:15.5]} 14... Qxd1 {[%clk 0:02:26.1]} 15. Raxd1
{[%clk 0:02:07.3]} 15... h6 {[%clk 0:02:22.3]} 16. Nxg6 {[%clk 0:02:00.8]} 16...
hxg5 {[%clk 0:02:14.5]} 17. Nxf8 {[%clk 0:01:59.2]} 17... Bxf8 {[%clk
0:02:13.7]} 18. Bxa8 {[%clk 0:01:59.8]} 18... a6 {[%clk 0:02:07.3]} 19. Rd8
{[%clk 0:01:47.5]} 19... Bb7 {[%clk 0:01:55.2]} 20. Bxb7 {[%clk 0:01:38.7]}
20... Nbd7 {[%clk 0:01:51.3]} 21. Bc8 {[%clk 0:01:35.3]} 21... Nc5 {[%clk
0:01:45.2]} 22. Re1 {[%clk 0:01:31.2]} 22... Kf7 {[%clk 0:01:38]} 23. f4 {[%clk
0:01:10]} 23... gxf4 {[%clk 0:01:35.7]} 24. gxf4 {[%clk 0:01:11.9]} 24... Bh6
{[%clk 0:01:35.4]} 25. f5 {[%clk 0:01:05.6]} 25... exf5 {[%clk 0:01:33.9]} 26.
Bxf5 {[%clk 0:01:03.2]} 26... Nb7 {[%clk 0:01:13.7]} 27. Rb8 {[%clk 0:00:58.9]}
27... Nd6 {[%clk 0:01:10.5]} 28. Bh3 {[%clk 0:00:51.6]} 28... b5 {[%clk
0:01:09.9]} 29. Ra8 {[%clk 0:00:47.2]} 29... Bd2 {[%clk 0:01:09.2]} 30. Ra7+
{[%clk 0:00:44.2]} 30... Kg6 {[%clk 0:01:08.9]} 31. Rf1 {[%clk 0:00:45]} 31...
Bxc3 {[%clk 0:01:08.9]} 32. bxc3 {[%clk 0:00:43.9]} 32... Nc4 {[%clk 0:01:08.6]}
33. Rxa6 {[%clk 0:00:42.8]} 33... Nd2 {[%clk 0:01:07.5]} 34. Rd1 {[%clk
0:00:42.1]} 34... Ne4 {[%clk 0:01:07.6]} 35. Bf5+ {[%clk 0:00:40.1]} 35... Kg5
{[%clk 0:01:06.8]} 36. Bxe4 {[%clk 0:00:42]} 36... Nxe4 {[%clk 0:01:08.3]} 37.
Rd5+ {[%clk 0:00:39.6]} 37... Kf4 {[%clk 0:01:08.2]} 38. Rxb5 {[%clk 0:00:41.5]}
38... Nxc3 {[%clk 0:01:07.9]} 39. Rb4+ {[%clk 0:00:43.4]} 39... Ne4 {[%clk
0:01:08.1]} 40. Raa4 {[%clk 0:00:41.6]} 40... Kf3 {[%clk 0:01:03.9]} 41. Rxe4
{[%clk 0:00:43.5]} 1/2-1

[Event "Torneo Nuevo Centro. Jornada 11"]
[Site "Chess.com"]
[Date "2020.08.28"]
[Round "5"]
[White "Serrano Requena, Guillem"]
[Black "Rabbani Perez, Oumaima "]
[Result "1-0"]
[WhiteElo "1322"]
[BlackElo "725"]
[TimeControl "180+2"]
[EndTime "11:20:50 PDT"]
[Termination "Victoria de Guily351 por tiempo"]

1. d4 {[%clk 0:03:01.9]} 1... d5 {[%clk 0:02:56.2]} 2. Nf3 {[%clk 0:02:59.9]}
2... e6 {[%clk 0:02:56.9]} 3. c4 {[%clk 0:02:57.8]} 3... Nf6 {[%clk 0:02:52.1]}
4. cxd5 {[%clk 0:02:55]} 4... Nxd5 {[%clk 0:02:49.6]} 5. Nc3 {[%clk 0:02:54.5]}
5... Nf4 {[%clk 0:02:42.5]} 6. Bxf4 {[%clk 0:02:53.9]} 6... Nc6 {[%clk
0:02:38.2]} 7. Nb5 {[%clk 0:02:49.5]} 7... Rb8 {[%clk 0:02:27.9]} 8. Bxc7 {[%clk
0:02:47.2]} 8... Qd7 {[%clk 0:02:11.9]} 9. Bxb8 {[%clk 0:02:45]} 9... Nxb8
{[%clk 0:02:11.4]} 10. e3 {[%clk 0:02:43.7]} 10... a6 {[%clk 0:02:03.4]} 11. Nc3
{[%clk 0:02:43.7]} 11... Nc6 {[%clk 0:01:48.6]} 12. a3 {[%clk 0:02:40.5]} 12...
Bd6 {[%clk 0:01:37.9]} 13. Bd3 {[%clk 0:02:37.7]} 13... b5 {[%clk 0:01:26.4]}
14. O-O {[%clk 0:02:36.1]} 14... e5 {[%clk 0:01:23.3]} 15. dxe5 {[%clk
0:02:33.5]} 15... Nxe5 {[%clk 0:01:22.2]} 16. Nxe5 {[%clk 0:02:33.9]} 16... Bxe5
{[%clk 0:01:21.6]} 17. Qc2 {[%clk 0:02:33.2]} 17... Bc7 {[%clk 0:01:20.1]} 18.
Bxh7 {[%clk 0:02:30.3]} 18... Qd6 {[%clk 0:01:17.8]} 19. g3 {[%clk 0:02:28.5]}
19... Bb7 {[%clk 0:01:11.9]} 20. Ne4 {[%clk 0:02:24.2]} 20... Qc6 {[%clk
0:00:59.2]} 21. Qxc6+ {[%clk 0:02:21.6]} 21... Bxc6 {[%clk 0:00:58.9]} 22. Ng5
{[%clk 0:02:13.6]} 22... Be5 {[%clk 0:00:47]} 23. Be4 {[%clk 0:02:09.1]} 23...
Bxe4 {[%clk 0:00:44.2]} 24. Nxe4 {[%clk 0:02:09.1]} 24... Bxb2 {[%clk
0:00:42.4]} 25. Ra2 {[%clk 0:02:04.1]} 25... Be5 {[%clk 0:00:25]} 26. Rc1 {[%clk
0:01:55.5]} 26... Bd6 {[%clk 0:00:24.1]} 27. Rc8+ {[%clk 0:01:54.1]} 27... Ke7
{[%clk 0:00:23.1]} 28. Rxh8 {[%clk 0:01:53.3]} 28... b4 {[%clk 0:00:23.5]} 29.
axb4 {[%clk 0:01:52]} 29... Bxb4 {[%clk 0:00:23.2]} 30. Rxa6 {[%clk 0:01:52.1]}
30... f5 {[%clk 0:00:19.7]} 31. Ng5 {[%clk 0:01:47.7]} 31... f4 {[%clk
0:00:18.6]} 32. exf4 {[%clk 0:01:40]} 32... g6 {[%clk 0:00:15.1]} 33. Rxg6
{[%clk 0:01:35]} 33... Bd6 {[%clk 0:00:10.3]} 34. Rh7+ {[%clk 0:01:34.4]} 34...
Kf8 {[%clk 0:00:06.1]} 35. Ne6+ {[%clk 0:01:26.5]} 1